bitfinex-derivatives/quotes_ETHF0:USTF0_20260312
["timestamp","ask_amount","ask_price","bid_price","bid_amount"]
[1773308625649,1.21600524,2052.6,2051.9,0.0055706]
[1773308626861,0.022,2052.5,2051.9,0.0055706]
[1773308627051,1.30400524,2052.4,2051.9,0.0055706]
[1773308627257,1.30400524,2052.4,2051.6,0.26462888]
[1773308627458,0.24869549,2052.8,2051.6,0.26462888]
[1773308627459,1.21600524,2052.2,2051.6,0.26462888]
[1773308628257,1.21600524,2052.2,2051.6,0.02697577]
[1773308628657,1.34800524,2052.2,2051.4,0.022]
[1773308629156,1.34800524,2052.2,2051.4,0.82346245]
[1773308629555,1.34800524,2052.2,2051.4,0.82847647]
[1773308629756,1.34800524,2052.2,2051.4,0.02701402]
[1773308631162,1.34800524,2052.2,2051.4,0.85184588]
[1773308631555,0.132,2052.2,2051.5,0.84251293]
[1773308632359,0.132,2052.2,2051.4,7.69001402]
[1773308632360,1.12688174,2052.7,2051.7,0.83931215]
[1773308632556,1.12688174,2052.7,2051.9,0.83912636]
[1773308632757,1.10488174,2052.7,2052.3,0.022]
[1773308633359,1.14888174,2052.7,2052.3,0.022]
[1773308633760,1.12688174,2052.8,2052.3,0.95060061]
[1773308633959,1.10488174,2052.8,2052.5,0.022]
[1773308634659,1.10834066,2052.8,2052.5,0.022]
[1773308636258,1.15234066,2052.8,2052.1,0.022]
[1773308636463,1.12688174,2052.5,2052.1,0.022]
[1773308638266,1.21488174,2052.5,2051.9,0.022]
[1773308639461,0.088,2052.5,2052.0,1.02312049]
[1773308639657,1.21488174,2052.5,2052.0,1.02312049]
[1773308640667,0.088,2052.5,2052.0,1.02312049]
[1773308640860,1.13034066,2052.8,2052.0,1.26677049]
[1773308641256,1.10834066,2052.8,2052.6,0.022]
[1773308641459,1.12688174,2053.4,2052.6,1.21039057]
[1773308641660,1.12688174,2053.9,2052.6,1.21039057]
[1773308641959,1.12688174,2053.5,2052.6,1.18839057]
[1773308642261,0.00535022,2053.5,2052.8,1.18839057]
[1773308642456,2.54107462,2055.1,2054.4,0.53256348]
[1773308642658,6.11604762,2055.3,2054.4,0.53256348]
[1773308642659,1.24798057,2056.1,2054.5,48.70435]
[1773308642858,1.24798057,2056.1,2054.6,0.28535334]
[1773308643163,1.24798057,2056.1,2054.8,0.28535334]
[1773308643357,1.25225549,2056.1,2054.8,0.28979121]
[1773308643563,1.24867321,2056.7,2055.6,0.28396807]
[1773308643763,1.24867321,2056.7,2055.8,0.28396807]
[1773308643965,1.24867321,2056.5,2055.8,0.28396807]
[1773308644160,1.24867321,2056.5,2055.4,0.28314198]
[1773308644357,1.24867321,2056.3,2055.4,0.28314198]
[1773308644559,1.25495451,2056.3,2055.4,0.28314198]
[1773308644763,1.27924338,2056.3,2055.4,0.28314198]
[1773308645163,0.03054225,2056.3,2055.4,0.28314198]
[1773308645466,1.28978108,2056.2,2055.4,7.94114198]
[1773308646063,0.0062813,2056.3,2055.5,0.24376163]
[1773308646964,0.0062813,2056.3,2055.7,0.21818689]
[1773308647166,1.27772984,2056.7,2055.7,0.21818689]
[1773308647566,0.85762617,2057.3,2056.4,0.18829551]
[1773308647767,1.38688821,2059.0,2057.5,5.9777]
[1773308647963,1.38688821,2059.3,2058.0,0.30049767]
[1773308648160,1.38688821,2058.9,2056.9,0.05755767]
[1773308648367,5.97346,2059.0,2057.3,0.05755767]
[1773308648368,1.38559887,2058.7,2057.3,0.05755767]
[1773308648570,1.38559887,2059.0,2057.5,0.06013636]
[1773308648764,1.38559887,2059.0,2057.7,0.06013636]
[1773308648966,1.38559887,2058.8,2057.4,7.656]
[1773308649167,1.12688174,2059.2,2057.5,0.05755399]
[1773308649371,1.12688174,2059.2,2057.6,1.18839057]
[1773308649569,1.12688174,2059.2,2057.5,5.9812126]
[1773308649570,1.12688174,2059.2,2057.8,1.18839057]
[1773308649769,1.12688174,2059.1,2057.8,1.18839057]
[1773308649966,1.12688174,2058.8,2057.6,1.18839057]
[1773308650168,1.12688174,2058.7,2057.6,1.18839057]
[1773308650767,1.12688174,2059.0,2057.7,1.18839057]
[1773308651269,1.13242939,2059.3,2058.1,1.18839057]
[1773308651777,1.13242939,2059.3,2058.2,8.83939057]
[1773308652072,1.13242939,2059.3,2058.3,1.18839057]
[1773308652275,1.13242939,2059.3,2058.4,8.83839057]
[1773308652572,1.15116183,2060.1,2058.6,1.18839057]
[1773308653073,5.96794,2061.0,2058.5,9.77338365]
[1773308653074,5.96596,2061.6,2059.5,1.18839057]
[1773308653275,1.12688174,2061.1,2060.0,1.18839057]
[1773308653568,1.12688174,2060.6,2059.4,1.18839057]
[1773308653966,1.12688174,2060.6,2059.5,8.83739057]
[1773308654165,1.12688174,2060.6,2059.6,1.18839057]
[1773308654670,1.12688174,2061.0,2059.8,1.18839057]
[1773308654873,1.12688174,2060.8,2059.8,8.83539057]
[1773308655065,1.12688174,2060.5,2059.6,0.0039961]
[1773308655266,1.12688174,2060.1,2059.1,8.83439057]
[1773308655669,1.12688174,2060.7,2059.3,1.18839057]
[1773308655871,1.12688174,2060.7,2059.6,1.18839057]
[1773308656071,1.12688174,2060.5,2059.4,0.022]
[1773308656273,1.12688174,2060.5,2059.4,1.21553214]
[1773308656679,1.12688174,2060.5,2059.5,1.18839057]
[1773308656880,1.12688174,2060.5,2059.6,1.18839057]
[1773308657073,1.12688174,2061.0,2059.6,1.18839057]
[1773308657275,1.12688174,2060.6,2059.6,8.83139057]
[1773308657478,1.12688174,2060.6,2059.4,0.02714157]
[1773308657778,1.12688174,2060.4,2059.4,7.67014157]
[1773308657975,3.25026539,2060.4,2059.4,0.02714157]
[1773308658286,1.12688174,2060.3,2059.4,1.21553214]
[1773308658580,1.12688174,2060.5,2059.6,1.18839057]
[1773308659074,1.12688174,2060.5,2059.4,1.21553214]
[1773308659379,1.12688174,2060.5,2059.4,0.02714157]
[1773308659980,1.12688174,2060.5,2059.4,7.66814157]
[1773308660279,1.43528197,2060.3,2059.4,0.02714157]
[1773308661077,1.43528197,2060.3,2059.4,7.66614157]
[1773308661580,1.43528197,2060.3,2059.5,1.33680552]
[1773308662381,1.43528197,2060.3,2059.4,7.66614157]
[1773308662782,1.43528197,2060.3,2059.4,0.02714157]
[1773308664686,1.43528197,2060.3,2059.5,1.34107329]
[1773308665788,1.43528197,2060.3,2059.4,0.02714157]
[1773308668581,0.00613567,2061.1,2059.4,0.02714157]
[1773308668582,0.00613567,2061.1,2060.0,1.58889103]
[1773308668783,0.00613567,2061.1,2060.3,1.34619103]
[1773308669085,1.43528197,2061.2,2060.2,2.12338365]
[1773308669086,1.43528197,2061.9,2060.7,1.34355302]
[1773308669280,1.43528197,2061.6,2060.5,7.636]
[1773308669477,1.43528197,2061.3,2060.5,7.636]
[1773308669880,1.43528197,2061.8,2060.7,1.35132258]
[1773308670385,1.43528197,2062.2,2060.9,1.35132258]
[1773308670587,1.43528197,2062.2,2061.1,1.35131923]
[1773308671177,1.41711596,2062.2,2061.4,0.022]
[1773308671379,1.43528197,2062.1,2061.4,0.022]
[1773308671885,0.088,2062.0,2061.4,0.022]
[1773308672186,1.52328197,2062.0,2061.4,7.656]
[1773308672584,1.52328197,2062.0,2061.4,0.022]
[1773308672781,0.11,2061.9,2061.3,1.40042196]
[1773308673283,1.54528197,2061.9,2061.3,7.633]
[1773308673582,1.43911596,2062.2,2061.2,0.022]
[1773308673785,1.43911596,2062.2,2061.1,2.12873167]
[1773308673786,1.43911596,2062.2,2061.3,7.633]
[1773308673976,1.43528197,2062.0,2061.4,0.022]
[1773308674180,1.43528197,2062.0,2061.2,0.022]
[1773308674181,0.24248,2061.9,2061.2,0.022]
[1773308674380,1.43528197,2062.0,2061.2,0.022]
[1773308674585,1.43528197,2061.8,2061.0,0.022]
[1773308675778,1.44037037,2061.8,2061.0,0.02778618]
[1773308675987,1.44037037,2061.8,2061.0,1.42820814]
[1773308676184,1.43528197,2062.0,2061.2,1.40042196]
[1773308676388,1.43528197,2062.4,2061.2,1.40042196]
[1773308676685,1.43528197,2062.4,2061.3,9.03142196]
[1773308676983,1.43528197,2062.4,2061.4,7.631]
[1773308677180,1.43528197,2062.2,2061.4,7.631]
[1773308677379,1.43528197,2062.2,2061.0,1.40620814]
[1773308677686,1.43528197,2062.2,2061.1,9.03142196]
[1773308677886,1.43528197,2062.0,2061.1,7.631]
[1773308678386,1.43528197,2062.0,2061.0,0.00578618]
[1773308678885,1.43528197,2062.0,2061.0,7.63678618]
[1773308679588,1.43528197,2062.0,2061.0,0.00578618]
[1773308679986,1.43528197,2062.0,2061.0,1.40620814]
[1773308681188,1.43528197,2062.0,2061.1,7.631]
[1773308681387,1.43528197,2062.0,2061.0,1.40620814]
[1773308681583,1.43528197,2062.0,2061.2,1.40042196]
[1773308682083,1.43528197,2062.0,2061.0,0.00578618]
[1773308682688,1.43528197,2062.0,2061.0,1.40620814]
[1773308682890,1.43528197,2062.0,2061.3,1.31187254]
[1773308683490,1.43528197,2062.0,2061.4,7.63]
[1773308683688,1.43528197,2062.0,2061.3,7.63]
[1773308683893,1.43528197,2062.0,2061.0,0.00578618]
[1773308684190,1.43528197,2062.0,2061.2,1.31187254]
[1773308684388,1.43528197,2062.0,2061.0,1.31765872]
[1773308684695,1.43528197,2062.0,2061.2,1.31187254]
[1773308685596,1.43528197,2062.0,2061.3,7.631]
[1773308685793,1.43528197,2062.0,2061.3,8.94287254]
[1773308685994,1.43528197,2062.0,2061.7,0.022]
[1773308686491,1.43528197,2062.0,2061.5,0.022]
[1773308686694,1.43528197,2062.0,2061.4,7.632]
[1773308686892,1.43528197,2062.0,2061.2,1.31187254]
[1773308687200,1.43528197,2062.0,2061.3,7.632]
[1773308687593,1.43528197,2062.0,2061.3,8.94387254]
[1773308687794,1.32385035,2062.2,2061.4,1.31187254]
[1773308687994,1.3286879,2062.4,2061.4,1.31187254]
[1773308688293,1.3286879,2062.4,2061.6,1.31187254]
[1773308690092,1.3286879,2062.4,2061.8,1.31187254]
[1773308690394,1.3286879,2062.4,2061.9,9.01411325]
[1773308690596,0.00483755,2062.4,2061.9,9.01411325]
[1773308690796,1.76291128,2062.5,2061.9,7.633]
[1773308691001,1.76291128,2062.5,2061.8,1.38111325]
[1773308691197,1.76291128,2062.5,2061.5,3.91655508]
[1773308691400,1.41583131,2062.3,2061.5,7.633]
[1773308691702,1.41583131,2062.1,2061.2,1.38111325]
[1773308692100,1.42019077,2062.1,2061.2,1.38111325]
[1773308692494,1.42019077,2062.1,2061.3,9.01411325]
[1773308692698,1.42019077,2062.1,2061.3,1.38111325]
[1773308692897,1.42019077,2062.1,2061.1,1.62368325]
[1773308693101,1.42019077,2062.1,2061.2,7.633]
[1773308693499,1.42019077,2062.1,2061.3,7.634]
[1773308693801,1.42019077,2062.1,2061.0,0.25338465]
[1773308694304,1.42019077,2062.1,2061.1,7.634]
[1773308694498,1.42019077,2062.1,2061.2,1.38111325]
[1773308694703,1.42019077,2062.1,2061.3,7.634]
[1773308695400,1.42019077,2062.1,2061.1,1.38111325]
[1773308695804,1.42019077,2062.1,2061.2,9.01511325]
[1773308696008,1.42019077,2062.1,2061.3,7.635]
[1773308696607,1.42019077,2062.1,2061.4,7.635]
[1773308697803,1.42019077,2062.1,2061.0,1.38689943]
[1773308698302,1.42019077,2062.1,2061.1,13.39819949]
[1773308698503,1.42019077,2062.1,2061.0,7.14909892]
[1773308698706,1.42019077,2062.1,2061.1,7.636]
[1773308699102,1.42019077,2062.1,2061.0,7.14909892]
[1773308699310,1.42019077,2062.1,2061.2,7.636]
[1773308699601,1.41583131,2061.7,2061.0,0.00578618]
[1773308700103,1.41583131,2061.5,2060.5,7.14331274]
[1773308700298,1.41583131,2061.5,2060.6,7.637]
[1773308700612,1.41583131,2061.5,2060.7,1.38111325]
[1773308700902,1.42019077,2062.1,2061.1,1.38111325]
[1773308701104,1.42019077,2062.1,2061.3,1.40311325]
[1773308701105,0.022,2061.8,2061.3,1.40311325]
[1773308701407,1.43783131,2061.8,2061.3,1.40311325]
[1773308701605,1.43783131,2061.8,2061.3,9.04111325]
[1773308702003,1.43783131,2061.8,2061.3,0.022]
[1773308702205,1.43783131,2061.8,2061.1,0.022]
[1773308702403,1.41583131,2061.5,2061.1,0.022]
[1773308702608,0.044,2061.6,2061.1,1.40311325]
[1773308702812,0.00435946,2062.1,2061.5,1.38111325]
[1773308703007,0.00435946,2062.1,2061.4,7.88558314]
[1773308703008,0.00435946,2062.1,2061.6,14.78331274]
[1773308703302,1.76291128,2062.5,2061.7,0.99207325]
[1773308704311,1.76770095,2062.5,2061.7,0.99207325]
[1773308704711,1.76770095,2062.5,2061.8,8.95231277]
[1773308705006,1.76770095,2062.5,2061.9,7.646]
[1773308705604,0.35186964,2062.5,2062.0,1.31757596]
[1773308705914,1.41583131,2063.6,2062.5,1.31757596]
[1773308706104,1.41583131,2063.6,2062.7,1.31450008]
[1773308706508,1.41583131,2063.9,2062.9,1.3143872]
[1773308706808,1.41583131,2064.7,2063.4,0.2423]
[1773308707009,4.08345588,2065.0,2063.8,1.33589219]
[1773308707010,1.41583131,2064.9,2063.8,1.33589219]
[1773308707213,0.02423302,2065.0,2064.0,3.45301081]
[1773308707404,1.41583131,2065.7,2064.5,1.38111325]
[1773308707600,1.41583131,2065.7,2064.7,1.38111325]
[1773308707801,1.41583131,2066.2,2064.9,1.38111325]
[1773308708005,1.41583131,2065.2,2064.3,9.04211325]
[1773308708201,1.41936997,2065.2,2064.3,7.66452502]
[1773308708402,1.41583131,2064.9,2064.0,1.38111325]
[1773308708608,1.41583131,2064.9,2064.1,1.38111325]
[1773308709011,0.00353866,2065.2,2064.3,1.38111325]
[1773308709213,1.41583131,2065.8,2064.6,1.38111325]
[1773308709419,1.41583131,2065.8,2064.8,1.38111325]
[1773308709624,1.41583131,2065.8,2064.9,1.38111325]
[1773308709822,1.41583131,2065.8,2064.8,7.676]
[1773308710021,1.41583131,2065.8,2064.8,7.677]
[1773308710326,1.41992812,2065.8,2064.8,9.06415305]
[1773308710521,1.41992812,2065.8,2064.9,7.683]
[1773308710819,0.00409681,2065.8,2065.0,1.38111325]
[1773308711225,1.41992812,2065.8,2065.1,7.689]
[1773308711723,1.41992812,2065.8,2065.1,9.07011325]
[1773308711921,1.41992812,2065.8,2065.0,1.38111325]
[1773308712229,1.41992812,2065.8,2065.1,7.695]
[1773308712420,1.41992812,2065.8,2065.0,1.38111325]
[1773308712620,1.41992812,2065.8,2065.1,1.38111325]
[1773308712922,1.41992812,2065.8,2064.1,2.10938087]
[1773308712923,1.41583131,2065.6,2063.8,5.98612188]
[1773308713120,1.41583131,2064.2,2062.3,1.38111325]
[1773308713422,1.41583131,2064.2,2062.6,1.38111325]
[1773308713724,1.41583131,2064.2,2062.7,1.38111325]
[1773308713914,1.42003223,2064.2,2062.9,1.38111325]
[1773308714119,1.41583131,2064.1,2062.7,1.3863846]
[1773308714324,1.41583131,2063.9,2062.7,0.00527135]
[1773308714626,1.41583131,2063.9,2062.7,1.3863846]
[1773308714823,1.41583131,2063.9,2062.7,0.00527135]
[1773308715514,1.41583131,2063.9,2062.1,1.38111325]
[1773308715515,1.65813131,2063.4,2062.1,1.38111325]
[1773308715721,1.41583131,2063.3,2061.8,1.38111325]
[1773308715925,1.41583131,2063.3,2061.9,7.72]
[1773308716222,1.41583131,2062.9,2061.9,0.022]
[1773308716418,6.20423,2063.0,2061.7,0.022]
[1773308716419,1.41583131,2062.7,2061.7,0.022]
[1773308716722,1.42160676,2062.7,2061.7,0.02802932]
[1773308716917,0.154,2062.6,2061.7,0.02802932]
[1773308717121,1.41583131,2062.5,2061.7,0.02802932]
[1773308717423,0.154,2062.6,2061.7,0.02802932]
[1773308717424,0.154,2062.6,2061.7,1.40914257]
[1773308717627,1.56983131,2062.6,2061.7,1.40914257]
[1773308718223,1.56983131,2062.6,2061.8,9.11411325]
[1773308718418,1.56983131,2062.6,2061.8,1.38111325]
[1773308718628,1.56983131,2062.6,2061.7,0.02802932]
[1773308719028,1.56983131,2062.6,2061.7,1.40914257]
[1773308720026,1.56983131,2062.6,2061.8,7.752]
[1773308720226,0.176,2062.5,2061.5,0.022]
[1773308720426,1.39321085,2062.4,2061.5,0.022]
[1773308721423,1.39321085,2062.4,2061.5,0.02571499]
[1773308723930,1.39321085,2062.4,2061.5,1.47957]
[1773308724126,0.176,2062.5,2061.5,1.47957]
[1773308724829,0.176,2062.5,2061.7,1.45385501]
[1773308725231,1.39321085,2063.3,2061.9,1.45385501]
[1773308725529,1.37121085,2063.3,2063.1,0.022]
[1773308726329,1.37585066,2063.3,2063.1,0.02637918]
[1773308726534,0.04863981,2063.3,2062.9,1.47585501]
[1773308726727,1.39321085,2063.7,2062.9,1.45385501]
[1773308726929,1.39321085,2063.7,2062.7,1.45385501]
[1773308727631,1.39819602,2063.7,2062.7,1.45881817]
[1773308728030,1.39819602,2063.7,2062.7,0.00496316]
[1773308728337,1.39819602,2063.7,2062.7,1.45881817]
[1773308728537,1.39819602,2063.7,2062.7,0.00496316]
[1773308729035,1.64046602,2063.7,2062.7,0.00496316]
[1773308729432,1.39321085,2063.4,2062.2,1.45385501]
[1773308729634,5.96503517,2063.7,2061.4,0.24253]
[1773308729635,1.39321085,2063.2,2062.0,1.45385501]
[1773308730031,1.39321085,2062.8,2061.5,1.45385501]
[1773308730334,1.39321085,2062.4,2061.1,1.45385501]
[1773308730630,1.39321085,2062.4,2061.3,1.45385501]
[1773308730836,1.39321085,2063.0,2061.3,1.45385501]
[1773308731031,1.39321085,2063.0,2062.2,0.022]
[1773308731032,1.37121085,2063.0,2062.2,0.022]
[1773308731434,1.63564085,2062.3,2061.4,0.022]
[1773308731736,1.39321085,2062.1,2061.4,0.022]
[1773308731937,1.39905328,2062.1,2061.4,0.022]
[1773308732439,0.00584243,2062.1,2061.4,1.47585501]
[1773308733635,0.11,2062.2,2061.4,1.47585501]
[1773308734134,1.39321085,2062.8,2061.4,1.47585501]
[1773308734439,1.39321085,2062.8,2061.6,1.45385501]
[1773308734629,1.39321085,2062.8,2062.6,0.022]
[1773308734630,1.37668625,2062.8,2062.6,0.022]
[1773308734829,1.37668625,2062.8,2062.2,0.022]
[1773308735034,1.37668625,2062.8,2062.0,0.022]
[1773308735230,0.088,2062.6,2062.0,0.022]
[1773308735430,1.39321085,2062.5,2062.0,0.022]
[1773308735834,1.39321085,2062.5,2062.0,0.02674952]
[1773308737639,1.50321085,2062.5,2061.6,0.022]
[1773308738639,1.50321085,2062.5,2061.8,0.02608198]
[1773308739844,0.24239,2062.7,2061.6,0.022]
[1773308739845,1.39321085,2062.3,2061.6,0.022]
[1773308740732,1.39321085,2062.3,2061.6,0.02544124]
[1773308740945,1.39321085,2062.2,2061.4,0.022]
[1773308741839,1.39321085,2062.2,2061.4,0.02621717]
[1773308742342,1.39321085,2062.2,2061.2,1.47585501]
[1773308742343,1.39321085,2062.0,2061.2,1.47585501]
[1773308742734,1.39321085,2062.0,2061.2,0.022]
[1773308742935,1.43653166,2061.8,2061.2,0.022]
[1773308743345,1.43653166,2061.8,2061.2,0.02817867]
[1773308744040,1.43653166,2061.6,2060.6,0.022]
[1773308744438,1.43653166,2061.4,2060.4,0.022]
[1773308744738,1.43653166,2061.2,2060.2,0.022]
[1773308744940,1.43653166,2061.2,2060.2,0.02767834]
[1773308744941,0.24257,2061.1,2060.2,0.02767834]
[1773308745139,1.43653166,2061.0,2059.8,0.022]
[1773308746044,1.43653166,2061.0,2060.0,0.02796443]
[1773308746344,1.43653166,2061.0,2060.0,1.34842248]
[1773308746541,1.43653166,2061.0,2060.1,1.32045805]
[1773308747942,1.43653166,2061.0,2060.1,9.13145805]
[1773308748244,1.43653166,2061.0,2060.2,1.32045805]
[1773308749345,1.44039554,2061.2,2060.2,1.32045805]
[1773308750249,1.44039554,2061.2,2060.0,0.27065443]
[1773308750549,1.44039554,2061.2,2060.0,0.02796443]
[1773308750550,1.35750853,2061.0,2060.0,0.02796443]
[1773308750848,1.35750853,2061.0,2060.0,1.32492995]
[1773308752545,0.00386388,2061.2,2060.2,1.29696552]
[1773308752750,1.36137241,2061.2,2060.3,1.29696552]
[1773308753840,1.36137241,2061.2,2060.1,1.29696552]
[1773308754049,1.36137241,2061.2,2060.2,1.29696552]
[1773308755944,1.36137241,2061.2,2060.3,0.24267]
[1773308756151,0.00386388,2061.2,2060.4,1.29696552]
[1773308757553,0.00386388,2061.2,2060.6,1.29696552]
[1773308758053,0.00386388,2061.2,2060.5,0.24264]
[1773308758054,1.66550853,2061.6,2060.8,1.29696552]
[1773308758245,0.07386388,2061.6,2061.0,1.29696552]
[1773308758439,0.04150708,2061.6,2061.1,0.24257]
[1773308758652,0.04150708,2061.6,2061.2,1.29696552]
[1773308758851,0.04552155,2061.6,2061.2,1.29696552]
[1773308759453,1.40303008,2061.6,2060.9,1.29696552]
[1773308759954,1.40303008,2061.6,2060.7,1.29696552]
[1773308760349,1.40303008,2061.6,2060.4,1.29696552]
[1773308760552,1.40303008,2061.6,2060.1,0.24268]
[1773308760553,1.35750853,2061.4,2060.1,1.29696552]
[1773308761055,1.35750853,2061.0,2060.0,0.02796443]
[1773308761255,1.35750853,2061.0,2059.8,0.022]
[1773308761445,1.35750853,2060.8,2059.8,0.022]
[1773308762247,1.35750853,2060.8,2059.8,0.026267]
[1773308762443,1.35750853,2060.8,2059.6,0.022]
[1773308762641,1.44301561,2060.8,2059.6,0.022]
[1773308762845,1.44301561,2060.8,2059.6,1.31896552]
[1773308763449,1.44301561,2060.8,2059.6,1.323743]
[1773308766656,1.44301561,2060.8,2059.8,1.29696552]
[1773308768952,1.44301561,2060.8,2059.7,7.751]
[1773308769159,1.44301561,2060.8,2059.6,1.323743]
[1773308769961,1.68562561,2060.8,2059.6,1.323743]
[1773308770663,1.44301561,2060.8,2059.6,1.323743]
[1773308771562,1.35750853,2060.6,2059.6,0.02677748]
[1773308772861,1.60015853,2060.4,2059.4,0.022]
[1773308773959,1.72966561,2060.4,2059.2,0.022]
[1773308774163,1.35750853,2060.3,2059.2,0.022]
[1773308774362,0.24268,2060.2,2059.2,0.022]
[1773308774567,1.35750853,2060.1,2059.2,0.022]
[1773308774964,1.3611386,2060.1,2059.2,0.02745813]
[1773308776067,1.35750853,2059.9,2059.0,0.022]
[1773308776262,1.35750853,2059.9,2059.0,1.31896552]
[1773308776969,1.35750853,2059.9,2059.0,0.02817802]
[1773308778065,1.35750853,2059.9,2059.0,1.32514354]
[1773308778566,0.24272,2059.8,2059.0,0.02817802]
[1773308778766,1.35750853,2059.9,2059.0,0.02817802]
[1773308779368,0.00363007,2060.1,2058.6,1.31896552]
[1773308779567,1.35750853,2059.6,2058.8,1.29696552]
[1773308779767,0.19550708,2059.9,2058.8,1.29696552]
[1773308779768,1.35750853,2059.8,2058.8,1.29696552]
[1773308780370,1.35750853,2059.8,2058.8,1.3032698]
[1773308780872,1.35750853,2059.8,2059.0,1.30062239]
[1773308781474,1.35750853,2059.8,2058.8,0.00630428]
[1773308781675,3.48022479,2059.8,2058.8,0.00630428]
[1773308781871,1.29635342,2059.7,2058.8,0.00630428]
[1773308782566,1.29635342,2059.3,2058.6,0.022]
[1773308783176,1.29635342,2059.1,2058.4,0.022]
[1773308783674,1.29635342,2059.1,2058.4,0.02743915]
[1773308784276,1.29635342,2059.1,2058.4,1.32806154]
[1773308784973,1.29635342,2059.1,2058.2,0.022]
[1773308785172,0.24282,2059.0,2058.2,0.022]
[1773308785377,1.29635342,2058.9,2058.2,0.022]
[1773308785577,1.29635342,2058.8,2057.8,0.022]
[1773308785779,1.29635342,2058.8,2058.0,1.32262239]
[1773308785978,1.29635342,2058.8,2058.0,1.32753349]
[1773308789187,1.29635342,2058.8,2058.0,0.0269111]
[1773308791381,3.41906968,2058.8,2057.8,0.022]
[1773308791585,1.29635342,2058.7,2057.8,0.022]
[1773308792490,1.29635342,2058.7,2057.8,0.02581366]
[1773308794191,1.29635342,2058.7,2057.8,1.32643605]
[1773308795291,1.29635342,2058.7,2057.8,0.02581366]
[1773308795791,1.29635342,2058.7,2057.8,1.32643605]
[1773308798188,1.29635342,2058.7,2057.4,2.39272344]
[1773308798189,1.29635342,2058.3,2057.4,1.32262239]
[1773308798388,1.29635342,2058.3,2057.5,1.54362239]
[1773308798588,1.29635342,2058.9,2057.7,1.30062239]
[1773308798785,1.29635342,2058.9,2057.5,1.54362239]
[1773308798991,1.29635342,2058.6,2057.5,1.54362239]
[1773308799190,1.30103902,2058.6,2057.5,1.54758735]
[1773308799692,1.30103902,2058.6,2057.5,1.30458735]
[1773308800289,0.24288,2058.5,2057.5,0.00396496]
[1773308800594,1.29635342,2058.4,2057.5,0.00396496]
[1773308801893,1.29635342,2058.4,2057.5,1.30458735]
[1773308804297,1.3007286,2058.6,2057.7,1.24796863]
[1773308804795,1.3007286,2058.6,2057.8,1.24796863]
[1773308805291,1.3007286,2058.6,2057.8,8.89196863]
[1773308805494,1.3007286,2058.6,2057.8,1.24796863]
[1773308805904,1.3007286,2058.6,2057.6,1.24796863]
[1773308806503,1.5435986,2058.6,2057.5,0.00396496]
[1773308806702,1.296043,2058.3,2057.5,0.00396496]
[1773308806898,1.296043,2058.3,2057.4,0.022]
[1773308807393,1.296043,2058.1,2057.2,0.022]
[1773308807591,1.296043,2058.1,2057.4,1.24796863]
[1773308807791,1.296043,2058.1,2057.6,1.24796863]
[1773308808399,1.296043,2058.1,2057.5,7.643]
[1773308808603,1.296043,2058.1,2057.4,1.25278553]
[1773308808802,1.296043,2058.1,2057.5,7.643]
[1773308809207,1.296043,2058.1,2057.4,1.25278553]
[1773308809403,1.296043,2058.1,2057.4,0.0048169]
[1773308809704,1.296043,2058.1,2057.4,7.6478169]
[1773308809902,1.296043,2058.5,2057.5,1.49096863]
[1773308810904,1.296043,2058.5,2057.6,7.642]
[1773308811105,1.296043,2058.5,2057.5,1.49096863]
[1773308811300,1.296043,2058.5,2057.6,8.89899263]
[1773308811697,1.296043,2058.5,2057.6,1.25699263]
[1773308811905,1.296043,2058.5,2057.5,0.243]
[1773308812101,1.296043,2058.5,2057.6,7.642]
[1773308812301,1.296043,2058.5,2057.5,1.25699263]
[1773308812703,1.296043,2058.5,2057.4,1.50481953]
[1773308812903,1.20217382,2058.3,2057.4,1.50481953]
[1773308813104,1.20217382,2058.3,2057.5,7.642]
[1773308813408,1.20217382,2058.3,2057.4,7.6468169]
[1773308813803,1.20217382,2058.3,2057.4,0.0048169]
[1773308817003,1.20217382,2057.4,2057.0,0.022]
[1773308817208,1.20217382,2057.6,2057.0,1.27899263]
[1773308817400,1.20217382,2057.6,2057.0,0.022]
[1773308818005,1.20217382,2057.6,2057.0,0.02795749]
[1773308820307,1.20217382,2057.6,2056.8,1.27899263]
[1773308820513,1.20217382,2058.0,2057.0,1.25699263]
[1773308820706,1.20217382,2058.0,2057.2,1.25699263]
[1773308821409,1.20217382,2058.0,2057.2,1.26070391]
[1773308821614,1.20217382,2057.9,2057.2,0.00371128]
[1773308822412,1.20217382,2057.3,2056.8,0.022]
[1773308822707,1.20217382,2057.3,2056.4,0.022]
[1773308822907,1.20217382,2057.3,2056.2,0.022]
[1773308822908,1.20217382,2057.2,2056.2,0.022]
[1773308823102,1.20217382,2056.9,2056.2,0.022]
[1773308823303,1.20592023,2056.9,2056.0,0.022]
[1773308824115,1.20592023,2056.9,2055.6,0.022]
[1773308824315,1.20592023,2056.9,2055.6,1.28498068]
[1773308824316,1.20217382,2056.5,2055.6,1.28498068]
[1773308824613,1.20217382,2056.5,2055.7,1.25699263]
[1773308825804,1.20217382,2056.5,2055.7,8.89899263]
[1773308826414,1.20217382,2056.5,2055.7,1.25699263]
[1773308826808,1.20217382,2056.8,2055.8,1.25699263]
[1773308827514,1.20217382,2056.1,2055.6,0.02798805]
[1773308827911,1.20217382,2056.1,2055.4,0.022]
[1773308828911,1.20217382,2056.1,2055.4,0.02663877]
[1773308830414,1.44534382,2056.0,2055.0,0.022]
[1773308830611,1.44534382,2056.0,2054.5,1.25699263]
[1773308830612,1.20217382,2055.3,2054.5,1.25699263]
[1773308830808,1.20217382,2055.3,2054.8,1.27899263]
[1773308831209,0.5,2055.0,2054.8,0.022]
[1773308831813,0.45793099,2055.0,2054.7,1.25699263]
[1773308832713,0.45793099,2055.0,2054.7,1.26106236]
[1773308832913,0.45793099,2055.0,2054.6,1.27899263]
[1773308833116,1.20217382,2054.9,2054.2,0.022]
[1773308833315,1.20217382,2054.9,2054.2,1.27899263]
[1773308833717,1.20217382,2054.9,2054.0,0.022]
[1773308833911,1.20217382,2054.8,2054.0,0.022]
[1773308834117,1.20217382,2054.8,2053.8,0.022]
[1773308835215,2.13147742,2054.9,2053.6,0.022]
[1773308835216,1.20217382,2054.6,2053.6,0.022]
[1773308835810,1.20217382,2054.4,2053.4,0.022]
[1773308836218,1.20217382,2054.4,2053.4,0.02584824]
[1773308836616,1.20217382,2054.0,2053.0,0.022]
[1773308836817,1.20217382,2054.0,2053.0,1.27899263]
[1773308837011,1.20217382,2054.0,2053.0,0.022]
[1773308837617,1.20217382,2054.0,2053.0,1.27899263]
[1773308837819,1.20217382,2053.9,2053.0,1.28404025]